[Event "Krakow Championship-B 2022"]
[Site "Krakow"]
[Date "2022.06.26"]
[Round "3.3"]
[White "Maciejewski, Kamil"]
[Black "Stemmler, Fabian"]
[Result "0-1"]
[ECO "A04"]
[WhiteElo "1939"]
[BlackElo "2054"]
[Annotator "RC"]
[PlyCount "138"]
[EventDate "2022.06.25"]
[EventType "swiss"]
[EventCountry "POL"]
[SourceTitle "playchess.com"]
[Source "ChessBase"]
[SourceQuality "1"]
[TimeControl "40/5400+30:1800+30"]

1. Nf3 {[%emt 0:00:03]} f5 {[%emt 0:03:06]} 2. d3 {[%emt 0:00:11]} Nc6 {[%emt 0:00:08]} 3. d4 {[%emt 0:00:14]} e6 {[%emt 0:00:11]} 4. c4 {[%emt 0:04:53]} Nf6 {[%emt 0:01:11]} 5. Nc3 {[%emt 0:11:01]} Bb4 {[%emt 0:11:16]} 6. d5 {[%emt 0:13:49]} Bxc3+ {[%emt 0:04:13]} 7. bxc3 {[%emt 0:00:06]} Ne7 {[%emt 0:00:24]} 8. Bg5 {[%emt 0:07:35]} Ne4 {[%emt 0:06:32]} 9. Qd4 {[%emt 0:08:31]} Nxg5 {[%emt 0:16:25]} 10. Nxg5 {[%emt 0:00:24]} Ng6 {[%emt 0:01:45]} 11. h4 {[%emt 0:11:49]} e5 {[%emt 0:07:00]} 12. Qd2 {[%emt 0:04:53]} h6 {[%emt 0:09:10]} 13. Nf3 {[%emt 0:01:05]} d6 {[%emt 0:00:45]} 14. h5 {[%emt 0:01:42]} Ne7 {[%emt 0:00:12]} 15. g3 {[%emt 0:05:44]} O-O {[%emt 0:08:03]} 16. Bg2 {[%emt 0:03:03]} Qe8 {[%emt 0:05:01]} 17. Qc2 {[%emt 0:08:30]} Bd7 {[%emt 0:02:51]} 18. Nd2 {[%emt 0:03:16]} c5 {[%emt 0:02:25]} 19. f4 {[%emt 0:03:46]} exf4 {[%emt 0:03:54]} 20. gxf4 {[%emt 0:00:05]} Qf7 {[%emt 0:01:46]} 21. Bf3 {[%emt 0:02:01]} Kh8 {[%emt 0:01:34]} 22. Kf2 {[%emt 0:01:36]} Ng8 {[%emt 0:01:23]} 23. Rag1 {[%emt 0:00:29]} Nf6 {[%emt 0:00:30]} 24. e3 {[%emt 0:01:03]} Rae8 {[%emt 0:02:51]} 25. Nf1 {[%emt 0:01:21]} Re7 {[%emt 0:02:13]} 26. Ng3 {[%emt 0:02:02]} Rfe8 {[%emt 0:02:27]} 27. Re1 {[%emt 0:00:36]} Ne4+ {[%emt 0:02:32]} 28. Bxe4 {[%emt 0:00:46]} fxe4 {[%emt 0:00:15]} 29. Rh4 {[%emt 0:00:44]} Qf6 {[%emt 0:00:36]} 30. Reh1 {[%emt 0:00:15]} b5 {[%emt 0:01:17]} 31. cxb5 {[%emt 0:00:49]} Bxb5 {[%emt 0:00:07]} 32. c4 {[%emt 0:01:02]} Bd7 {[%emt 0:00:31]} 33. R4h2 {[%emt 0:02:30]} Bg4 {[%emt 0:01:53]} 34. Rb1 {[%emt 0:00:36]} Bf3 {[%emt 0:01:12]} 35. Rb3 {[%emt 0:00:50]} Rf7 {[%emt 0:00:58]} 36. Qb2 {[%emt 0:00:37]} Qd8 {[%emt 0:00:37]} 37. Qc3 {[%emt 0:00:31]} Qa8 {[%emt 0:00:39]} 38. Ne2 {[%emt 0:00:27]} Rb7 {[%emt 0:00:31]} 39. Ng1 {[%emt 0:00:32]} Bd1 {[%emt 0:00:34]} 40. Rxb7 {[%emt 0:00:31]} Qxb7 {[%emt 0:00:04]} 41. Qc1 {[%emt 0:14:32]} Bg4 {[%emt 0:08:34]} 42. Kg3 {[%emt 0:01:21]} Bf5 {[%emt 0:00:15]} 43. Rb2 {[%emt 0:02:39]} Qf7 {[%emt 0:00:08]} 44. Qd1 {[%emt 0:01:39]} Rg8 {[%emt 0:11:39]} 45. Rh2 {[%emt 0:04:36]} g5 {[%emt 0:02:00]} 46. Qa1+ {[%emt 0:03:20]} Kh7 {[%emt 0:01:26]} 47. Kf2 {[%emt 0:01:11]} gxf4 {[%emt 0:00:34]} 48. exf4 {[%emt 0:00:16]} Bg4 {[%emt 0:01:40]} 49. Ke3 {[%emt 0:00:46]} Rf8 {[%emt 0:01:12]} 50. Rf2 {[%emt 0:01:44]} Bf3 {[%emt 0:02:31]} 51. Nh3 {[%emt 0:02:22]} Qf5 {[%emt 0:01:45]} 52. Rh2 {[%emt 0:00:49]} Bg4 {[%emt 0:00:44]} 53. Qf1 {[%emt 0:00:32]} Qf6 {[%emt 0:00:22]} 54. Kf2 {[%emt 0:01:13]} Bxh3 {[%emt 0:04:01]} 55. Qxh3 {[%emt 0:00:07]} Qxf4+ {[%emt 0:00:29]} 56. Ke2 {[%emt 0:00:34]} Rf7 {[%emt 0:00:36]} 57. Qg2 {[%emt 0:00:48]} Rg7 {[%emt 0:01:04]} 58. Qf2 {[%emt 0:00:31]} Qg4+ {[%emt 0:00:45]} 59. Kd2 {[%emt 0:00:31]} Qg5+ {[%emt 0:00:36]} 60. Qe3 {[%emt 0:00:28]} Qe5 {[%emt 0:00:16]} 61. Re2 {[%emt 0:00:31]} Re7 {[%emt 0:00:43]} 62. Qc3 {[%emt 0:00:30]} Qxh5 {[%emt 0:00:20]} 63. Rg2 {[%emt 0:00:31]} e3+ {[%emt 0:00:21]} 64. Kc2 {[%emt 0:00:27]} Qf5+ {[%emt 0:00:14]} 65. Kb2 {[%emt 0:00:31]} e2 {[%emt 0:00:17]} 66. Rg1 {[%emt 0:00:30]} Qe5 {[%emt 0:00:41]} 67. Re1 {[%emt 0:00:21]} Qxc3+ {[%emt 0:00:22]} 68. Kxc3 {[%emt 0:00:05]} h5 {[%emt 0:00:12]} 69. Kd3 {[%emt 0:00:12]} Kh6 {[%emt 0:00:11]} 0-1

[Event "Krakow Championship-B 2022"]
[Site "Krakow"]
[Date "2022.06.26"]
[Round "3.4"]
[White "Cichon, Jakub"]
[Black "Malik, Maciej"]
[Result "0-1"]
[ECO "B09"]
[WhiteElo "1884"]
[BlackElo "1984"]
[Annotator "NA RC"]
[PlyCount "48"]
[EventDate "2022.06.25"]
[EventType "swiss"]
[EventCountry "POL"]
[SourceTitle "playchess.com"]
[Source "ChessBase"]
[SourceQuality "1"]
[TimeControl "40/5400+30:1800+30"]

1. e4 {[%emt 0:00:53]} g6 {[%emt 0:01:35]} 2. d4 {[%emt 0:00:06]} d6 {[%emt 0:00:04]} 3. Nc3 {[%emt 0:00:43]} Nf6 {[%emt 0:00:11]} 4. f4 {[%emt 0:01:00]} Bg7 {[%emt 0:00:30]} 5. Nf3 {[%emt 0:00:12]} O-O {[%emt 0:00:40]} 6. Be3 {[%emt 0:02:16]} Na6 {[%emt 0:01:55]} 7. h3 {[%emt 0:06:26]} c5 {[%emt 0:01:48]} 8. d5 {[%emt 0:04:23]} Nc7 {[%emt 0:00:09]} 9. Qd2 {[%emt 0:02:49]} b5 {[%emt 0:00:45]} 10. e5 {[%emt 0:30:03]} b4 {[%emt 0:00:08]} 11. exf6 {[%emt 0:08:32]} bxc3 {[%emt 0:00:13]} 12. bxc3 {[%emt 0:02:10]} exf6 {[%emt 0:00:19]} 13. Rb1 {[%emt 0:05:48]} f5 {[%emt 0:01:48]} 14. c4 {[%emt 0:05:14]} Re8 {[%emt 0:01:30]} 15. Be2 {[%emt 0:03:50]} Qd7 {[%emt 0:04:14]} 16. Qd3 {[%emt 0:05:06]} Ba6 {[%emt 0:00:48]} 17. Rb3 {[%emt 0:02:24]} Re4 {[%emt 0:02:00]} 18. Nd2 {[%emt 0:02:47]} Re7 {[%emt 0:00:09]} 19. O-O {[%emt 0:02:28]} Rxe3 {[%emt 0:00:07]} 20. Qxe3 {[%emt 0:00:57]} Bd4 {[%emt 0:00:07]} 21. Qxd4 {[%emt 0:01:15]} cxd4 {[%emt 0:00:07]} 22. Nf3 {[%emt 0:00:19]} Nxd5 {[%emt 0:00:45]} 23. Nxd4 {[%emt 0:00:29]} Nf6 {[%emt 0:00:30]} 24. Rfb1 {[%emt 0:00:34]} Qc7 {[%emt 0:00:56]} 0-1

[Event "Krakow Championship-B 2022"]
[Site "Krakow"]
[Date "2022.06.26"]
[Round "3.5"]
[White "Klementys, Jerzy"]
[Black "Khandhar, Kaushal"]
[Result "0-1"]
[ECO "D15"]
[WhiteElo "1614"]
[BlackElo "1936"]
[Annotator "NA RC"]
[PlyCount "62"]
[EventDate "2022.06.25"]
[EventType "swiss"]
[EventCountry "POL"]
[SourceTitle "playchess.com"]
[Source "ChessBase"]
[SourceQuality "1"]
[TimeControl "40/5400+30:1800+30"]

1. d4 {[%emt 0:00:02]} d5 {[%emt 0:07:28]} 2. c4 {[%emt 0:00:03]} c6 {[%emt 0:00:11]} 3. Nc3 {[%emt 0:00:12]} Nf6 {[%emt 0:00:06]} 4. Nf3 {[%emt 0:00:08]} a6 {[%emt 0:00:10]} 5. e3 {[%emt 0:00:55]} Bf5 {[%emt 0:00:21]} 6. c5 {[%emt 0:01:06]} Nbd7 {[%emt 0:00:47]} 7. Be2 {[%emt 0:00:13]} e6 {[%emt 0:06:09]} 8. Nh4 {[%emt 0:03:04]} Be7 {[%emt 0:02:21]} 9. Nxf5 {[%emt 0:00:22]} exf5 {[%emt 0:00:03]} 10. O-O {[%emt 0:00:35]} O-O {[%emt 0:00:13]} 11. b4 {[%emt 0:03:12]} Ne4 {[%emt 0:02:03]} 12. Bb2 {[%emt 0:00:51]} b5 {[%emt 0:04:52]} 13. a4 {[%emt 0:10:58]} Qc7 {[%emt 0:01:48]} 14. f3 {[%emt 0:05:38]} Nxc3 {[%emt 0:03:36]} 15. Bxc3 {[%emt 0:00:02]} Bg5 {[%emt 0:00:54]} 16. Bd2 {[%emt 0:05:31]} Rae8 {[%emt 0:05:24]} 17. f4 {[%emt 0:08:16]} Bh6 {[%emt 0:00:57]} 18. Bd3 {[%emt 0:00:27]} g6 {[%emt 0:00:15]} 19. axb5 {[%emt 0:03:54]} axb5 {[%emt 0:00:38]} 20. Ra3 {[%emt 0:01:47]} Re6 {[%emt 0:04:51]} 21. Qa1 {[%emt 0:02:23]} Nf6 {[%emt 0:01:16]} 22. Ra7 {[%emt 0:02:31]} Qc8 {[%emt 0:15:02]} 23. h3 {[%emt 0:01:40]} Rfe8 {[%emt 0:02:33]} 24. Qa3 {[%emt 0:02:23]} Kg7 {[%emt 0:07:42]} 25. Bc2 {[%emt 0:03:25]} Qb8 {[%emt 0:08:06]} 26. Ra1 {[%emt 0:01:13]} Nh5 {[%emt 0:03:00]} 27. g4 {[%emt 0:07:11]} fxg4 {[%emt 0:02:16]} 28. hxg4 {[%emt 0:00:55]} Nxf4 {[%emt 0:02:43]} 29. exf4 {[%emt 0:07:08]} Re2 {[%emt 0:05:42]} 30. Qd3 {[%emt 0:03:13]} Qc8 {[%emt 0:01:34]} 31. g5 {[%emt 0:02:14]} Qg4+ {[%emt 0:00:12]} 0-1

[Event "Krakow Championship-B 2022"]
[Site "Krakow"]
[Date "2022.06.26"]
[Round "3.6"]
[White "Budkiewicz, Magdalena"]
[Black "Radzimski, Antoni"]
[Result "1-0"]
[ECO "C49"]
[WhiteElo "1916"]
[BlackElo "1612"]
[Annotator "NA RC"]
[PlyCount "127"]
[EventDate "2022.06.25"]
[EventType "swiss"]
[EventCountry "POL"]
[SourceTitle "playchess.com"]
[Source "ChessBase"]
[SourceQuality "1"]
[TimeControl "40/5400+30:1800+30"]

1. e4 {[%emt 0:00:03]} e5 {[%emt 0:00:01]} 2. Nf3 {[%emt 0:00:39]} Nf6 {[%emt 0:00:11]} 3. Nc3 {[%emt 0:01:27]} Nc6 {[%emt 0:00:19]} 4. Bb5 {[%emt 0:01:12]} Bb4 {[%emt 0:01:26]} 5. O-O {[%emt 0:04:39]} O-O {[%emt 0:00:40]} 6. d3 {[%emt 0:00:22]} d6 {[%emt 0:00:17]} 7. Bg5 {[%emt 0:00:52]} Ne7 {[%emt 0:00:52]} 8. Qe2 {[%emt 0:13:10]} c6 {[%emt 0:02:26]} 9. Bc4 {[%emt 0:04:08]} Ng6 {[%emt 0:01:35]} 10. Nh4 {[%emt 0:02:02]} Re8 {[%emt 0:03:13]} 11. Nf5 {[%emt 0:03:54]} d5 {[%emt 0:04:33]} 12. Bb3 {[%emt 0:01:07]} h6 {[%emt 0:00:44]} 13. Bxf6 {[%emt 0:11:28]} Qxf6 {[%emt 0:00:23]} 14. Ng3 {[%emt 0:00:25]} d4 {[%emt 0:01:52]} 15. Nb1 {[%emt 0:03:51]} Nf4 {[%emt 0:01:43]} 16. Qd1 {[%emt 0:03:40]} Qg5 {[%emt 0:02:44]} 17. Kh1 {[%emt 0:11:19]} h5 {[%emt 0:01:06]} 18. Rg1 {[%emt 0:00:48]} h4 {[%emt 0:08:49]} 19. Ne2 {[%emt 0:01:39]} Bg4 {[%emt 0:01:00]} 20. f3 {[%emt 0:02:23]} Be6 {[%emt 0:01:22]} 21. Nxf4 {[%emt 0:01:16]} exf4 {[%emt 0:00:27]} 22. Nd2 {[%emt 0:00:33]} Bxd2 {[%emt 0:03:05]} 23. Qxd2 {[%emt 0:00:10]} Bxb3 {[%emt 0:00:11]} 24. axb3 {[%emt 0:00:06]} b6 {[%emt 0:02:02]} 25. g3 {[%emt 0:03:59]} hxg3 {[%emt 0:00:38]} 26. Rxg3 {[%emt 0:00:22]} Qh6 {[%emt 0:06:43]} 27. Rg4 {[%emt 0:00:54]} f5 {[%emt 0:01:20]} 28. Rxf4 {[%emt 0:01:27]} Re5 {[%emt 0:01:06]} 29. Rg1 {[%emt 0:06:30]} Rf8 {[%emt 0:02:48]} 30. Qg2 {[%emt 0:01:37]} Rf7 {[%emt 0:01:24]} 31. Qg3 {[%emt 0:03:35]} Qf6 {[%emt 0:05:24]} 32. Qh3 {[%emt 0:03:11]} g5 {[%emt 0:11:06]} 33. Rh4 {[%emt 0:06:42]} fxe4 {[%emt 0:01:06]} 34. fxe4 {[%emt 0:00:13]} Qf3+ {[%emt 0:00:36]} 35. Qxf3 {[%emt 0:00:15]} Rxf3 {[%emt 0:00:07]} 36. Rhg4 {[%emt 0:01:24]} Rf2 {[%emt 0:00:35]} 37. Rxg5+ {[%emt 0:01:03]} Rxg5 {[%emt 0:00:04]} 38. Rxg5+ {[%emt 0:00:05]} Kh7 {[%emt 0:00:07]} 39. Rg2 {[%emt 0:00:48]} Rf1+ {[%emt 0:00:05]} 40. Rg1 {[%emt 0:00:05]} Rf2 {[%emt 0:00:04]} 41. h3 {[%emt 0:11:36]} Rxc2 {[%emt 0:00:45]} 42. Rg2 {[%emt 0:00:13]} Rc1+ {[%emt 0:01:18]} 43. Kh2 {[%emt 0:00:05]} Rd1 {[%emt 0:00:05]} 44. Kg3 {[%emt 0:01:45]} Rxd3+ {[%emt 0:00:23]} 45. Kf4 {[%emt 0:00:07]} Rxh3 {[%emt 0:02:54]} 46. e5 {[%emt 0:00:43]} Re3 {[%emt 0:02:11]} 47. Kf5 {[%emt 0:00:55]} d3 {[%emt 0:00:52]} 48. Kf6 {[%emt 0:01:32]} Rf3+ {[%emt 0:03:04]} 49. Ke7 {[%emt 0:00:17]} Rf4 {[%emt 0:00:33]} 50. e6 {[%emt 0:06:24]} Re4 {[%emt 0:04:29]} 51. Kf7 {[%emt 0:04:06]} Re2 {[%emt 0:02:02]} 52. Rg1 {[%emt 0:10:17]} Rf2+ {[%emt 0:02:36]} 53. Ke8 {[%emt 0:00:07]} d2 {[%emt 0:01:14]} 54. e7 {[%emt 0:02:06]} Rf3 {[%emt 0:00:33]} 55. Kd7 {[%emt 0:01:26]} Rd3+ {[%emt 0:00:23]} 56. Kxc6 {[%emt 0:00:52]} Re3 {[%emt 0:00:06]} 57. Rd1 {[%emt 0:01:09]} Rxe7 {[%emt 0:00:13]} 58. Rxd2 {[%emt 0:00:04]} Re3 {[%emt 0:00:19]} 59. b4 {[%emt 0:00:32]} Rb3 {[%emt 0:00:09]} 60. b5 {[%emt 0:00:14]} Kg6 {[%emt 0:00:37]} 61. Rd7 {[%emt 0:00:18]} Rxb2 {[%emt 0:00:26]} 62. Rxa7 {[%emt 0:00:04]} Kf6 {[%emt 0:00:20]} 63. Rd7 {[%emt 0:00:13]} Ke6 {[%emt 0:00:10]} 64. Rd1 {[%emt 0:00:14]} 1-0

[Event "Krakow Championship-B 2022"]
[Site "Krakow"]
[Date "2022.06.26"]
[Round "3.7"]
[White "Lilja, Richard"]
[Black "Owoc, Jakub"]
[Result "0-1"]
[ECO "B19"]
[WhiteElo "2144"]
[BlackElo "1741"]
[Annotator "RC"]
[PlyCount "134"]
[EventDate "2022.06.25"]
[EventType "swiss"]
[EventCountry "POL"]
[SourceTitle "playchess.com"]
[Source "ChessBase"]
[SourceQuality "1"]
[TimeControl "40/5400+30:1800+30"]

1. e4 {[%emt 0:00:04]} c6 {[%emt 0:00:05]} 2. d4 {[%emt 0:00:12]} d5 {[%emt 0:00:08]} 3. Nc3 {[%emt 0:00:04]} dxe4 {[%emt 0:00:06]} 4. Nxe4 {[%emt 0:00:06]} Bf5 {[%emt 0:00:05]} 5. Ng3 {[%emt 0:00:20]} Bg6 {[%emt 0:00:08]} 6. h4 {[%emt 0:00:15]} h6 {[%emt 0:00:06]} 7. Nf3 {[%emt 0:00:17]} Nd7 {[%emt 0:00:06]} 8. h5 {[%emt 0:00:07]} Bh7 {[%emt 0:00:04]} 9. Bd3 {[%emt 0:00:07]} Bxd3 {[%emt 0:00:07]} 10. Qxd3 {[%emt 0:00:05]} e6 {[%emt 0:00:09]} 11. Bd2 {[%emt 0:00:14]} Ngf6 {[%emt 0:00:15]} 12. O-O-O {[%emt 0:00:16]} Qc7 {[%emt 0:00:07]} 13. Ne4 {[%emt 0:01:02]} Nxe4 {[%emt 0:00:09]} 14. Qxe4 {[%emt 0:00:05]} Nf6 {[%emt 0:00:09]} 15. Qe2 {[%emt 0:01:31]} Bd6 {[%emt 0:00:08]} 16. Kb1 {[%emt 0:02:02]} O-O-O {[%emt 0:00:13]} 17. c4 {[%emt 0:00:43]} c5 {[%emt 0:00:05]} 18. Bc3 {[%emt 0:01:45]} cxd4 {[%emt 0:01:13]} 19. Nxd4 {[%emt 0:00:31]} a6 {[%emt 0:00:08]} 20. Nb3 {[%emt 0:01:54]} Be7 {[%emt 0:11:56]} 21. Rc1 {[%emt 0:07:09]} Rd7 {[%emt 0:02:08]} 22. c5 {[%emt 0:01:13]} Qc6 {[%emt 0:10:08]} 23. f3 {[%emt 0:06:29]} Qd5 {[%emt 0:02:12]} 24. c6 {[%emt 0:12:12]} Qd3+ {[%emt 0:02:27]} 25. Qxd3 {[%emt 0:00:08]} Rxd3 {[%emt 0:00:05]} 26. cxb7+ {[%emt 0:00:22]} Kxb7 {[%emt 0:00:12]} 27. Na5+ {[%emt 0:02:03]} Kb6 {[%emt 0:00:50]} 28. Nc4+ {[%emt 0:00:19]} Kb7 {[%emt 0:00:23]} 29. Ne5 {[%emt 0:12:10]} Rd5 {[%emt 0:00:43]} 30. Nxf7 {[%emt 0:01:25]} Rc8 {[%emt 0:05:52]} 31. Rcd1 {[%emt 0:06:10]} Rxh5 {[%emt 0:01:38]} 32. Rxh5 {[%emt 0:10:03]} Nxh5 {[%emt 0:00:08]} 33. g4 {[%emt 0:00:29]} Nf6 {[%emt 0:01:12]} 34. Nd6+ {[%emt 0:04:54]} Bxd6 {[%emt 0:00:19]} 35. Rxd6 {[%emt 0:00:01]} Rc6 {[%emt 0:00:45]} 36. Rd8 {[%emt 0:00:23]} Rc8 {[%emt 0:00:35]} 37. Rxc8 {[%emt 0:02:17]} Kxc8 {[%emt 0:00:09]} 38. Kc2 {[%emt 0:00:10]} Kd7 {[%emt 0:00:26]} 39. Kd3 {[%emt 0:03:07]} Kd6 {[%emt 0:00:15]} 40. Bb4+ {[%emt 0:00:32]} Ke5 {[%emt 0:06:32]} 41. Bf8 {[%emt 0:30:26]} Ne8 {[%emt 0:37:43]} 42. Ke3 {[%emt 0:00:20]} Kd5 {[%emt 0:01:18]} 43. b3 {[%emt 0:01:12]} Ke5 {[%emt 0:00:28]} 44. Bb4 {[%emt 0:03:53]} g6 {[%emt 0:00:58]} 45. Bc3+ {[%emt 0:02:39]} Kd5 {[%emt 0:02:26]} 46. Kf4 {[%emt 0:01:01]} Nd6 {[%emt 0:02:10]} 47. Bf6 {[%emt 0:03:05]} e5+ {[%emt 0:03:26]} 48. Ke3 {[%emt 0:01:04]} h5 {[%emt 0:01:16]} 49. gxh5 {[%emt 0:03:06]} gxh5 {[%emt 0:00:12]} 50. Ke2 {[%emt 0:03:54]} Nb5 {[%emt 0:01:11]} 51. Kd3 {[%emt 0:01:08]} Nd4 {[%emt 0:00:26]} 52. Ke3 {[%emt 0:01:47]} Nf5+ {[%emt 0:00:34]} 53. Kf2 {[%emt 0:01:16]} Ke6 {[%emt 0:00:31]} 54. Bg5 {[%emt 0:02:30]} Kd5 {[%emt 0:00:53]} 55. Bd2 {[%emt 0:01:40]} Kd4 {[%emt 0:00:23]} 56. Bb4 {[%emt 0:01:17]} Kd3 {[%emt 0:04:33]} 57. Bc5 {[%emt 0:00:51]} h4 {[%emt 0:01:00]} 58. Kg2 {[%emt 0:00:00]} Nd4 {[%emt 0:00:00]} 59. Bd6 {[%emt 0:00:00]} h3+ {[%emt 0:00:00]} 60. Kxh3 {[%emt 0:00:00]} Nxf3 {[%emt 0:00:00]} 61. b4 {[%emt 0:00:00]} e4 {[%emt 0:00:00]} 62. Kg3 {[%emt 0:00:00]} Nd4 {[%emt 0:00:00]} 63. Bc5 {[%emt 0:00:00]} e3 {[%emt 0:00:00]} 64. Bxd4 {[%emt 0:00:00]} Kxd4 {[%emt 0:00:00]} 65. a4 {[%emt 0:00:00]} Kd3 {[%emt 0:00:00]} 66. b5 {[%emt 0:00:00]} axb5 {[%emt 0:00:00]} 67. axb5 {[%emt 0:00:00]} e2 {[%emt 0:00:00]} 0-1

[Event "Krakow Championship-B 2022"]
[Site "Krakow"]
[Date "2022.06.26"]
[Round "3.8"]
[White "Al-Hajiri, Bader"]
[Black "Moeller, Hannah"]
[Result "0-1"]
[ECO "A42"]
[WhiteElo "2052"]
[BlackElo "1833"]
[Annotator "NA RC"]
[PlyCount "42"]
[EventDate "2022.06.25"]
[EventType "swiss"]
[EventCountry "POL"]
[SourceTitle "playchess.com"]
[Source "ChessBase"]
[SourceQuality "1"]
[TimeControl "40/5400+30:1800+30"]

1. d4 {[%emt 0:00:04]} g6 {[%emt 0:00:08]} 2. c4 {[%emt 0:00:16]} Bg7 {[%emt 0:00:06]} 3. Nc3 {[%emt 0:00:08]} d6 {[%emt 0:00:30]} 4. e4 {[%emt 0:01:09]} Nd7 {[%emt 0:00:25]} 5. Be3 {[%emt 0:02:04]} c6 {[%emt 0:02:29]} 6. Nf3 {[%emt 0:00:27]} a6 {[%emt 0:02:02]} 7. a4 {[%emt 0:01:03]} b6 {[%emt 0:00:46]} 8. Be2 {[%emt 0:00:41]} Qc7 {[%emt 0:01:46]} 9. O-O {[%emt 0:00:27]} Ngf6 {[%emt 0:01:22]} 10. h3 {[%emt 0:00:18]} c5 {[%emt 0:01:34]} 11. e5 {[%emt 0:12:33]} dxe5 {[%emt 0:00:55]} 12. dxe5 {[%emt 0:00:09]} Nxe5 {[%emt 0:08:38]} 13. Bf4 {[%emt 0:02:00]} Nfd7 {[%emt 0:00:43]} 14. Nd5 {[%emt 0:00:10]} Qd8 {[%emt 0:00:12]} 15. Nxe5 {[%emt 0:17:39]} Nxe5 {[%emt 0:01:11]} 16. Nxb6 {[%emt 0:01:03]} Qxb6 {[%emt 0:02:09]} 17. Bxe5 {[%emt 0:02:12]} Bxe5 {[%emt 0:01:47]} 18. Qd5 {[%emt 0:00:07]} Qb8 {[%emt 0:00:27]} 19. Bf3 {[%emt 0:00:03]} Ra7 {[%emt 0:00:25]} 20. Rfe1 {[%emt 0:00:11]} Bd4 {[%emt 0:02:34]} 21. Rad1 {[%emt 0:03:06]} O-O {[%emt 0:03:27]} 0-1

[Event "Krakow Championship-B 2022"]
[Site "Krakow"]
[Date "2022.06.26"]
[Round "3.9"]
[White "Zarebska, Lena"]
[Black "Czaplak, Lukasz"]
[Result "0-1"]
[ECO "C02"]
[WhiteElo "1829"]
[BlackElo "1905"]
[Annotator "NA RC"]
[PlyCount "50"]
[EventDate "2022.06.25"]
[EventType "swiss"]
[EventCountry "POL"]
[SourceTitle "playchess.com"]
[Source "ChessBase"]
[SourceQuality "1"]
[TimeControl "40/5400+30:1800+30"]

1. e4 {[%emt 0:00:04]} e6 {[%emt 0:00:06]} 2. d4 {[%emt 0:00:09]} d5 {[%emt 0:00:03]} 3. e5 {[%emt 0:00:09]} c5 {[%emt 0:00:02]} 4. c3 {[%emt 0:00:12]} Qb6 {[%emt 0:00:08]} 5. Nf3 {[%emt 0:00:12]} Nc6 {[%emt 0:00:04]} 6. a3 {[%emt 0:00:18]} c4 {[%emt 0:00:46]} 7. h4 {[%emt 0:01:10]} Bd7 {[%emt 0:02:36]} 8. g3 {[%emt 0:00:37]} Na5 {[%emt 0:03:31]} 9. Nbd2 {[%emt 0:00:25]} O-O-O {[%emt 0:01:22]} 10. h5 {[%emt 0:00:44]} f6 {[%emt 0:01:52]} 11. h6 {[%emt 0:03:28]} Nxh6 {[%emt 0:05:15]} 12. exf6 {[%emt 0:01:19]} gxf6 {[%emt 0:01:08]} 13. Nxc4 {[%emt 0:10:33]} dxc4 {[%emt 0:06:52]} 14. Bxh6 {[%emt 0:02:15]} Bxh6 {[%emt 0:00:51]} 15. Rxh6 {[%emt 0:00:11]} Qxb2 {[%emt 0:00:52]} 16. Qc1 {[%emt 0:05:38]} Qb5 {[%emt 0:06:00]} 17. Rb1 {[%emt 0:09:40]} Qf5 {[%emt 0:01:23]} 18. Be2 {[%emt 0:06:39]} e5 {[%emt 0:09:18]} 19. Rb4 {[%emt 0:08:41]} Rhe8 {[%emt 0:11:42]} 20. Qb1 {[%emt 0:05:16]} exd4 {[%emt 0:10:38]} 21. Nxd4 {[%emt 0:02:56]} Qd5 {[%emt 0:12:18]} 22. Kf1 {[%emt 0:02:42]} Rxe2 {[%emt 0:05:39]} 23. Nxe2 {[%emt 0:01:44]} Bc6 {[%emt 0:01:52]} 24. Nf4 {[%emt 0:00:51]} Qf3 {[%emt 0:00:58]} 25. Ne2 {[%emt 0:02:11]} Rd2 {[%emt 0:01:41]} 0-1

[Event "Krakow Championship-B 2022"]
[Site "Krakow"]
[Date "2022.06.26"]
[Round "3.10"]
[White "Cwiek, Ryszard"]
[Black "Krupinski, Mikolaj"]
[Result "0-1"]
[ECO "B22"]
[WhiteElo "1880"]
[BlackElo "1826"]
[Annotator "NA RC"]
[PlyCount "41"]
[EventDate "2022.06.25"]
[EventType "swiss"]
[EventCountry "POL"]
[SourceTitle "playchess.com"]
[Source "ChessBase"]
[SourceQuality "1"]
[TimeControl "40/5400+30:1800+30"]

1. e4 {[%emt 0:00:02]} c5 {[%emt 0:00:23]} 2. c3 {[%emt 0:00:06]} d5 {[%emt 0:00:22]} 3. exd5 {[%emt 0:00:04]} Qxd5 {[%emt 0:00:09]} 4. d4 {[%emt 0:00:30]} Nc6 {[%emt 0:00:50]} 5. Nf3 {[%emt 0:00:06]} Bg4 {[%emt 0:00:52]} 6. Be2 {[%emt 0:00:27]} cxd4 {[%emt 0:00:41]} 7. cxd4 {[%emt 0:00:19]} e5 {[%emt 0:00:48]} 8. Nc3 {[%emt 0:05:06]} Bb4 {[%emt 0:02:30]} 9. O-O {[%emt 0:03:27]} Bxc3 {[%emt 0:00:39]} 10. bxc3 {[%emt 0:00:18]} Bxf3 {[%emt 0:13:38]} 11. Bxf3 {[%emt 0:00:06]} e4 {[%emt 0:00:06]} 12. Bxe4 {[%emt 0:00:47]} Qc4 {[%emt 0:00:20]} 13. Bxc6+ {[%emt 0:08:18]} bxc6 {[%emt 0:00:59]} 14. Re1+ {[%emt 0:00:07]} Kd8 {[%emt 0:00:24]} 15. Qg4 {[%emt 0:09:01]} g6 {[%emt 0:01:34]} 16. Qe4 {[%emt 0:00:12]} Kd7 {[%emt 0:01:09]} 17. Ba3 {[%emt 0:03:34]} Rd8 {[%emt 0:09:59]} 18. Rab1 {[%emt 0:02:48]} f6 {[%emt 0:02:39]} 19. Qf4 {[%emt 0:00:39]} Qd5 {[%emt 0:02:52]} 20. Rb7+ {[%emt 0:00:13]} Kc8 {[%emt 0:00:03]} 21. Qc7# {[%emt 0:00:06]} 0-1